fUST/lending_fUST_20250417
["ID","MTS","AMOUNT","RATE_DAILY","PERIOD"]
[358216391,1744852232033,-587.07,0.00021917,2]
[358216393,1744852232043,-622.94,0.00021917,2]
[358216395,1744852232052,-746.8,0.00021917,2]
[358216397,1744852232061,-1708.95,0.00021917,2]
[358216399,1744852232071,-500.0,0.00021917,2]
[358216401,1744852232081,-500.0,0.00021917,2]
[358216403,1744852232090,-500.0,0.00021917,2]
[358216405,1744852232099,-500.0,0.00021917,2]
[358216407,1744852232108,-500.0,0.00021917,2]
[358216409,1744852232118,-518.79,0.00021917,2]
[358216411,1744852232127,-500.0,0.00021917,2]
[358216413,1744852232141,-500.0,0.00021917,2]
[358216415,1744852232150,-1071.62,0.00021917,2]
[358216417,1744852232159,-500.0,0.00021917,2]
[358216419,1744852232168,-500.0,0.00021917,2]
[358216421,1744852232178,-902.73,0.00021917,2]
[358216423,1744852232188,-108.34622524,0.00021917,2]
[358216426,1744852232205,-391.65377476,0.00021917,2]
[358216427,1744852232214,-500.0,0.00021917,2]
[358216428,1744852232224,-500.0,0.00021917,2]
[358216429,1744852232234,-2266.73,0.00021917,2]
[358216430,1744852232244,-500.0,0.00021917,2]
[358216431,1744852232253,-1474.01,0.00021917,2]
[358216432,1744852232263,-911.81679243,0.00021917,2]
[358216563,1744852235397,-213.775959,0.00019817,2]
[358216582,1744852238292,-163.39174971,0.00019817,2]
[358216583,1744852238306,-116.52320757,0.00021917,2]
[358216584,1744852238317,-500.0,0.00021917,2]
[358216585,1744852238331,-500.0,0.00021917,2]
[358216586,1744852238340,-812.08,0.00021917,2]
[358216587,1744852238350,-500.0,0.00021917,2]
[358216588,1744852238360,-500.0,0.00021917,2]
[358216589,1744852238370,-500.0,0.00021917,2]
[358216590,1744852238380,-1509.2,0.00021917,2]
[358216591,1744852238389,-1080.37,0.00021917,2]
[358216592,1744852238399,-500.0,0.00021917,2]
[358216593,1744852238410,-500.0,0.00021917,2]
[358216594,1744852238420,-500.0,0.00021917,2]
[358216595,1744852238430,-500.0,0.00021917,2]
[358216596,1744852238440,-500.0,0.00021917,2]
[358216597,1744852238450,-1266.07,0.00021917,2]
[358216598,1744852238460,-516.79,0.00021917,2]
[358216599,1744852238470,-500.0,0.00021917,2]
[358216600,1744852238480,-500.0,0.00021917,2]
[358216601,1744852238490,-521.81,0.00021917,2]
[358216602,1744852238500,-654.74,0.00021917,2]
[358216603,1744852238510,-500.0,0.00021917,2]
[358216604,1744852238520,-500.0,0.00021917,2]
[358216605,1744852238530,-500.0,0.00021917,2]
[358216606,1744852238540,-300.8764908,0.00021917,2]
[358216607,1744852238550,-500.0,0.00021917,2]
[358216608,1744852238560,-500.0,0.00021917,2]
[358216609,1744852238570,-599.91,0.00021917,2]
[358216610,1744852238580,-500.0,0.00021917,2]
[358216611,1744852238590,-343.11818519,0.00021917,2]
[358216612,1744852238600,-902.39,0.00021917,2]
[358216613,1744852238610,-500.0,0.00021917,2]
[358216614,1744852238620,-618.68,0.00021917,2]
[358216615,1744852238630,-219.83389466,0.00021917,2]
[358216616,1744852238639,-663.31,0.00021917,2]
[358216617,1744852238649,-1258.96,0.00021917,2]
[358216618,1744852238659,-1145.58,0.00021917,2]
[358216619,1744852238670,-222.48937128,0.00021917,2]
[358216620,1744852238680,-681.97,0.00021917,2]
[358216621,1744852238690,-5315.01,0.00021917,2]
[358216622,1744852238700,-500.0,0.00021917,2]
[358216623,1744852238710,-500.0,0.00021917,2]
[358216624,1744852238721,-1022.4,0.00021917,2]
[358216625,1744852238731,-1495.2,0.00021917,2]
[358216626,1744852238741,-570.38257094,0.00021917,2]
[358216673,1744852243049,-1304.20742906,0.00021917,2]
[358216674,1744852243059,-501.36,0.00021917,2]
[358216675,1744852243069,-323.93116201,0.00021917,2]
[358216705,1744852246049,-176.06883799,0.00021917,2]
[358216706,1744852246059,-500.0,0.00021917,2]
[358216707,1744852246070,-1186.57,0.00021917,2]
[358216708,1744852246079,-1189.97,0.00021917,2]
[358216709,1744852246089,-1157.3,0.00021917,2]
[358216710,1744852246099,-845.95,0.00021917,2]
[358216711,1744852246108,-500.0,0.00021917,2]
[358216712,1744852246118,-519.06,0.00021917,2]
[358216713,1744852246127,-500.0,0.00021917,2]
[358216714,1744852246137,-1191.52,0.00021917,2]
[358216715,1744852246147,-436.65704021,0.00021917,2]
[358216716,1744852246157,-745.42,0.00021917,2]
[358216717,1744852246166,-500.0,0.00021917,2]
[358216718,1744852246176,-427.64803847,0.00021917,2]
[358216719,1744852246188,-72.35196153,0.00021917,2]
[358216720,1744852246198,-500.0,0.00021917,2]
[358216721,1744852246207,-3249.75716863,0.00021917,2]
[358216722,1744852246219,-16089.50283137,0.00021917,2]
[358216723,1744852246229,-725.2,0.00021917,2]
[358216724,1744852246239,-725.44,0.00021917,2]
[358216725,1744852246249,-1383.53,0.00021917,2]
[358216726,1744852246259,-500.0,0.00021917,2]
[358216727,1744852246268,-855.43,0.00021917,2]
[358216728,1744852246278,-8455.47,0.00021917,2]
[358216729,1744852246288,-152.8904732,0.00021917,2]
[358216730,1744852246297,-609.08,0.00021917,2]
[358216731,1744852246306,-500.0,0.00021917,2]
[358216732,1744852246316,-1294.33,0.00021917,2]
[358216733,1744852246326,-1623.95,0.00021917,2]
[358216734,1744852246335,-536.38,0.00021917,2]
[358216735,1744852246345,-2033.74,0.00021917,2]
[358216736,1744852246354,-1378.98,0.00021917,2]
[358216737,1744852246364,-500.0,0.00021917,2]
[358216738,1744852246373,-1652.46,0.00021917,2]
[358216739,1744852246383,-500.0,0.00021917,2]
[358216740,1744852246393,-544.08,0.00021917,2]
[358216741,1744852246403,-519.02,0.00021917,2]
[358216742,1744852246412,-302.43841936,0.00021917,2]
[358216743,1744852246422,-500.0,0.00021917,2]
[358216744,1744852246431,-809.56,0.00021917,2]
[358216745,1744852246440,-660.51,0.00021917,2]
[358216746,1744852246450,-500.0,0.00021917,2]
[358216747,1744852246459,-500.0,0.00021917,2]
[358216748,1744852246469,-500.0,0.00021917,2]
[358216749,1744852246478,-500.0,0.00021917,2]
[358216750,1744852246488,-500.0,0.00021917,2]
[358216751,1744852246497,-1171.96,0.00021917,2]
[358216752,1744852246506,-578.54,0.00021917,2]
[358216753,1744852246516,-500.0,0.00021917,2]
[358216754,1744852246525,-500.0,0.00021917,2]
[358216755,1744852246535,-500.0,0.00021917,2]
[358216756,1744852246545,-1106.62,0.00021917,2]
[358216757,1744852246555,-500.0,0.00021917,2]
[358216758,1744852246564,-1740.51,0.00021917,2]
[358216759,1744852246574,-500.0,0.00021917,2]
[358216760,1744852246584,-576.92,0.00021917,2]
[358216761,1744852246594,-675.98,0.00021917,2]
[358216762,1744852246603,-1419.48,0.00021917,2]
[358216763,1744852246613,-895.83,0.00021917,2]
[358216764,1744852246622,-500.0,0.00021917,2]
[358216765,1744852246632,-500.0,0.00021917,2]
[358216766,1744852246642,-545.99,0.00021917,2]
[358216767,1744852246653,-1208.97,0.00021917,2]
[358216768,1744852246662,-628.42,0.00021917,2]
[358216769,1744852246672,-500.0,0.00021917,2]
[358216770,1744852246682,-500.0,0.00021917,2]
[358216771,1744852246691,-500.0,0.00021917,2]
[358216772,1744852246701,-500.0,0.00021917,2]
[358216773,1744852246711,-521.11,0.00021917,2]
[358216774,1744852246721,-615.99,0.00021917,2]
[358216775,1744852246731,-806.68,0.00021917,2]
[358216776,1744852246740,-500.0,0.00021917,2]
[358216777,1744852246750,-500.0,0.00021917,2]
[358216778,1744852246759,-677.16,0.00021917,2]
[358216779,1744852246769,-806.83,0.00021917,2]
[358216780,1744852246779,-500.0,0.00021917,2]
[358216781,1744852246789,-2574.2,0.00021917,2]
[358216782,1744852246798,-659.31,0.00021917,2]
[358216783,1744852246808,-873.42,0.00021917,2]
[358216784,1744852246819,-1774.94,0.00021917,2]
[358216785,1744852246833,-500.0,0.00021917,2]
[358216786,1744852246843,-500.0,0.00021917,2]
[358216787,1744852246853,-545.44,0.00021917,2]
[358216788,1744852246863,-1367.61,0.00021917,2]
[358216789,1744852246872,-628.82000022,0.00021917,2]
[358216790,1744852246882,-2519.67,0.00021917,2]
[358216791,1744852246892,-500.0,0.00021917,2]
[358216792,1744852246902,-1112.11,0.00021917,2]
[358216793,1744852246912,-500.0,0.00021917,2]
[358216794,1744852246923,-684.25,0.00021917,2]
[358216795,1744852246933,-2245.97,0.00021917,2]
[358216796,1744852246944,-618.12,0.00021917,2]
[358216797,1744852246954,-500.0,0.00021917,2]
[358216798,1744852246966,-558.91997922,0.00021917,2]
[358216799,1744852246975,-500.0,0.00021917,2]
[358216800,1744852246985,-1435.77,0.00021917,2]
[358216801,1744852246994,-500.0,0.00021917,2]
[358216802,1744852247006,-500.0,0.00021917,2]
[358216803,1744852247016,-1045.07,0.00021917,2]
[358216804,1744852247026,-688.55,0.00021917,2]
[358216805,1744852247036,-1997.37,0.00021917,2]
[358216806,1744852247046,-500.0,0.00021917,2]
[358216807,1744852247056,-500.0,0.00021917,2]
[358216808,1744852247066,-1488.97,0.00021917,2]
[358216809,1744852247076,-6714.47,0.00021917,2]
[358216810,1744852247086,-500.0,0.00021917,2]
[358216811,1744852247095,-500.0,0.00021917,2]
[358216812,1744852247105,-2060.91,0.00021917,2]
[358216813,1744852247115,-167.08928691,0.00021917,2]
[358216814,1744852247125,-500.0,0.00021917,2]
[358216815,1744852247135,-550.84063913,0.00021917,2]
[358216816,1744852247145,-519.65,0.00021917,2]
[358216817,1744852247155,-500.0,0.00021917,2]
[358216818,1744852247164,-500.0,0.00021917,2]
[358216819,1744852247174,-500.0,0.00021917,2]
[358216820,1744852247183,-500.0,0.00021917,2]
[358216821,1744852247192,-511.65,0.00021917,2]
[358216822,1744852247201,-500.0,0.00021917,2]
[358216823,1744852247212,-490.85287072,0.00021917,2]
[358216824,1744852247221,-500.0,0.00021917,2]
[358216825,1744852247231,-516.36,0.00021917,2]
[358216826,1744852247239,-576.78,0.00021917,2]
[358216827,1744852247249,-939.41,0.00021917,2]
[358216828,1744852247259,-724.08,0.00021917,2]
[358216829,1744852247269,-500.0,0.00021917,2]
[358216830,1744852247280,-500.0,0.00021917,2]
[358216831,1744852247292,-747.32,0.00021917,2]
[358216832,1744852247303,-500.0,0.00021917,2]
[358216833,1744852247313,-500.0,0.00021917,2]
[358216834,1744852247323,-500.0,0.00021917,2]
[358216835,1744852247333,-500.0,0.00021917,2]
[358216836,1744852247343,-257.17373515,0.00021917,2]
[358216837,1744852247352,-500.0,0.00021917,2]
[358216838,1744852247362,-500.0,0.00021917,2]
[358216839,1744852247372,-500.0,0.00021917,2]
[358216840,1744852247381,-685.65,0.00021917,2]
[358216841,1744852247391,-755.44,0.00021917,2]
[358216842,1744852247401,-719.54,0.00021917,2]
[358216843,1744852247411,-500.0,0.00021917,2]
[358216844,1744852247425,-344.11938422,0.00021917,2]
[358216845,1744852247435,-500.0,0.00021917,2]
[358216846,1744852247444,-674.93,0.00021917,2]
[358216847,1744852247454,-10133.31,0.00021917,2]
[358216848,1744852247464,-876.88,0.00021917,2]
[358216849,1744852247473,-510.66,0.00021917,2]
[358216850,1744852247483,-590.38,0.00021917,2]
[358216851,1744852247493,-833.36,0.00021917,2]
[358216852,1744852247502,-500.0,0.00021917,2]
[358216853,1744852247512,-500.0,0.00021917,2]
[358216854,1744852247521,-661.55,0.00021917,2]
[358216855,1744852247531,-803.17,0.00021917,2]
[358216856,1744852247541,-975.57,0.00021917,2]
[358216857,1744852247550,-589.14,0.00021917,2]
[358216858,1744852247560,-559.19,0.00021917,2]
[358216859,1744852247570,-500.0,0.00021917,2]
[358216860,1744852247579,-702.88,0.00021917,2]
[358216861,1744852247589,-703.51,0.00021917,2]
[358216862,1744852247599,-2039.89,0.00021917,2]
[358216863,1744852247608,-193.85156343,0.00021917,2]
[358216864,1744852247618,-1548.95,0.00021917,2]
[358216865,1744852247627,-500.0,0.00021917,2]
[358216866,1744852247637,-500.0,0.00021917,2]
[358216867,1744852247647,-680.42,0.00021917,2]
[358216868,1744852247656,-500.0,0.00021917,2]
[358216869,1744852247666,-500.0,0.00021917,2]
[358216870,1744852247675,-500.0,0.00021917,2]
[358216871,1744852247686,-953.31,0.00021917,2]
[358216872,1744852247695,-1078.82,0.00021917,2]
[358216873,1744852247705,-500.0,0.00021917,2]
[358216874,1744852247715,-500.0,0.00021917,2]
[358216875,1744852247724,-1852.42,0.00021917,2]
[358216876,1744852247734,-500.0,0.00021917,2]
[358216877,1744852247743,-500.0,0.00021917,2]
[358216878,1744852247753,-1543.63,0.00021917,2]
[358216879,1744852247763,-500.0,0.00021917,2]
[358216880,1744852247773,-500.0,0.00021917,2]
[358216881,1744852247783,-824.6,0.00021917,2]
[358216882,1744852247792,-8333.33,0.00021917,2]
[358216883,1744852247802,-959.48,0.00021917,2]
[358216884,1744852247811,-655.08,0.00021917,2]
[358216885,1744852247823,-1047.03,0.00021917,2]
[358216886,1744852247835,-31022.7,0.00021917,2]
[358216887,1744852247846,-500.0,0.00021917,2]
[358216888,1744852247856,-500.0,0.00021917,2]
[358216889,1744852247867,-500.0,0.00021917,2]
[358216890,1744852247877,-500.0,0.00021917,2]
[358216891,1744852247887,-500.0,0.00021917,2]
[358216892,1744852247897,-500.0,0.00021917,2]
[358216893,1744852247907,-500.0,0.00021917,2]
[358216894,1744852247916,-500.0,0.00021917,2]
[358216895,1744852247926,-500.0,0.00021917,2]
[358216896,1744852247935,-1136.89,0.00021917,2]
[358216897,1744852247945,-500.0,0.00022191,2]
[358216898,1744852247955,-500.0,0.00022191,2]
[358216899,1744852247964,-587.07,0.00022191,2]
[358216900,1744852247974,-622.94,0.00022191,2]
[358216901,1744852247984,-746.8,0.00022191,2]
[358216902,1744852247993,-1708.95,0.00022191,2]
[358216903,1744852248003,-500.0,0.00022191,2]
[358216904,1744852248014,-238.53583295,0.00022191,2]
[358216905,1744852248023,-500.0,0.00022191,2]
[358216906,1744852248033,-500.0,0.00022191,2]
[358216907,1744852248043,-500.0,0.00022191,2]
[358216908,1744852248053,-518.79,0.00022191,2]
[358216909,1744852248063,-500.0,0.00022191,2]
[358216910,1744852248073,-500.0,0.00022191,2]
[358216911,1744852248083,-1071.62,0.00022191,2]
[358216912,1744852248092,-500.0,0.00022191,2]
[358216913,1744852248102,-500.0,0.00022191,2]
[358216914,1744852248112,-902.73,0.00022191,2]
[358216915,1744852248122,-500.0,0.00022191,2]
[358216916,1744852248132,-500.0,0.00022191,2]
[358216917,1744852248141,-500.0,0.00022191,2]
[358216918,1744852248151,-2266.73,0.00022191,2]
[358216919,1744852248161,-500.0,0.00022191,2]
[358216920,1744852248171,-1474.01,0.00022191,2]
[358216921,1744852248182,-1028.34,0.00022191,2]
[358216922,1744852248192,-500.0,0.00022191,2]
[358216923,1744852248202,-500.0,0.00022191,2]
[358216924,1744852248212,-812.08,0.00022191,2]
[358216925,1744852248222,-513.28309988,0.00022191,2]
[358216926,1744852248232,-500.0,0.00022191,2]
[358216927,1744852248242,-500.0,0.00022191,2]
[358216928,1744852248253,-1509.2,0.00022191,2]
[358216929,1744852248263,-1080.37,0.00022191,2]
[358216930,1744852248273,-500.0,0.00022191,2]
[358216931,1744852248283,-500.0,0.00022191,2]
[358216932,1744852248293,-500.0,0.00022191,2]
[358216933,1744852248303,-500.0,0.00022191,2]
[358216934,1744852248313,-500.0,0.00022191,2]
[358216935,1744852248323,-1266.07,0.00022191,2]
[358216936,1744852248332,-516.79,0.00022191,2]
[358216937,1744852248343,-500.0,0.00022191,2]
[358216938,1744852248353,-500.0,0.00022191,2]
[358216939,1744852248364,-521.81,0.00022191,2]
[358216940,1744852248374,-654.74,0.00022191,2]
[358216941,1744852248384,-500.0,0.00022191,2]
[358216942,1744852248394,-500.0,0.00022191,2]
[358216943,1744852248404,-500.0,0.00022191,2]
[358216944,1744852248414,-500.0,0.00022191,2]
[358216945,1744852248424,-500.0,0.00022191,2]
[358216946,1744852248433,-599.91,0.00022191,2]
[358216947,1744852248443,-500.0,0.00022191,2]
[358216948,1744852248453,-902.39,0.00022191,2]
[358216949,1744852248463,-500.0,0.00022191,2]
[358216950,1744852248472,-618.68,0.00022191,2]
[358216951,1744852248482,-663.31,0.00022191,2]
[358216952,1744852248492,-1258.96,0.00022191,2]
[358216953,1744852248502,-1145.58,0.00022191,2]
[358216954,1744852248512,-681.97,0.00022191,2]
[358216955,1744852248521,-5315.01,0.00022191,2]
[358216956,1744852248532,-500.0,0.00022191,2]
[358216957,1744852248542,-500.0,0.00022191,2]
[358216958,1744852248551,-1022.4,0.00022191,2]
[358216959,1744852248561,-1495.2,0.00022191,2]
[358216960,1744852248571,-1874.59,0.00022191,2]
[358216961,1744852248581,-501.36,0.00022191,2]
[358216962,1744852248591,-500.0,0.00022191,2]
[358216963,1744852248601,-500.0,0.00022191,2]
[358216964,1744852248610,-1186.57,0.00022191,2]
[358216965,1744852248621,-1189.97,0.00022191,2]
[358216966,1744852248630,-1157.3,0.00022191,2]
[358216967,1744852248641,-845.95,0.00022191,2]
[358216968,1744852248651,-500.0,0.00022191,2]
[358216969,1744852248661,-519.06,0.00022191,2]
[358216970,1744852248671,-500.0,0.00022191,2]
[358216971,1744852248681,-1191.52,0.00022191,2]
[358216972,1744852248882,-745.42,0.00022191,2]
[358216973,1744852248893,-500.0,0.00022191,2]
[358216974,1744852248903,-500.0,0.00022191,2]
[358216975,1744852248913,-500.0,0.00022191,2]
[358216976,1744852248923,-19339.26,0.00022191,2]
[358216977,1744852248934,-725.2,0.00022191,2]
[358216978,1744852248943,-725.44,0.00022191,2]
[358216979,1744852248953,-1383.53,0.00022191,2]
[358216980,1744852248963,-157.54780256,0.00022191,2]
[358216981,1744852248973,-855.43,0.00022191,2]
[358216982,1744852248983,-8455.47,0.00022191,2]
[358216983,1744852248993,-500.0,0.00022191,2]
[358216984,1744852249003,-609.08,0.00022191,2]
[358216985,1744852249013,-1294.33,0.00022191,2]
[358216986,1744852249023,-1623.95,0.00022191,2]
[358216987,1744852249033,-536.38,0.00022191,2]
[358216988,1744852249043,-2033.74,0.00022191,2]
[358216989,1744852249053,-1378.98,0.00022191,2]
[358216990,1744852249063,-500.0,0.00022191,2]
[358216991,1744852249073,-1652.46,0.00022191,2]
[358216992,1744852249083,-500.0,0.00022191,2]
[358216993,1744852249093,-544.08,0.00022191,2]
[358216994,1744852249102,-519.02,0.00022191,2]
[358216995,1744852249112,-500.0,0.00022191,2]
[358216996,1744852249122,-809.56,0.00022191,2]
[358216997,1744852249132,-660.51,0.00022191,2]
[358216998,1744852249142,-500.0,0.00022191,2]
[358216999,1744852249151,-500.0,0.00022191,2]
[358217000,1744852249162,-500.0,0.00022191,2]
[358217001,1744852249172,-500.0,0.00022191,2]
[358217002,1744852249182,-500.0,0.00022191,2]
[358217003,1744852249192,-1171.96,0.00022191,2]
[358217004,1744852249202,-578.54,0.00022191,2]
[358217005,1744852249212,-500.0,0.00022191,2]
[358217006,1744852249222,-500.0,0.00022191,2]
[358217007,1744852249232,-500.0,0.00022191,2]
[358217008,1744852249242,-1106.62,0.00022191,2]
[358217009,1744852249252,-500.0,0.00022191,2]
[358217010,1744852249262,-1740.51,0.00022191,2]
[358217011,1744852249272,-500.0,0.00022191,2]
[358217012,1744852249282,-576.92,0.00022191,2]
[358217013,1744852249292,-675.98,0.00022191,2]
[358217014,1744852249303,-1419.48,0.00022191,2]
[358217015,1744852249313,-895.83,0.00022191,2]
[358217016,1744852249323,-500.0,0.00022191,2]
[358217017,1744852249333,-500.0,0.00022191,2]
[358217018,1744852249343,-545.99,0.00022191,2]
[358217019,1744852249352,-1979.40566,0.00022191,2]
[358217020,1744852249362,-628.42,0.00022191,2]
[358217021,1744852249371,-1979.40566,0.00022191,2]
[358217022,1744852249382,-500.0,0.00022191,2]
[358217023,1744852249392,-500.0,0.00022191,2]
[358217024,1744852249402,-500.0,0.00022191,2]
[358217025,1744852249411,-500.0,0.00022191,2]
[358217026,1744852249421,-1208.97,0.00022191,2]
[358217027,1744852249432,-1979.40566,0.00022191,2]
[358217028,1744852249441,-1979.40566,0.00022191,2]
[358217029,1744852249451,-521.11,0.00022191,2]
[358217030,1744852249461,-615.99,0.00022191,2]
[358217031,1744852249471,-806.68,0.00022191,2]
[358217032,1744852249482,-500.0,0.00022191,2]
[358217033,1744852249492,-500.0,0.00022191,2]
[358217034,1744852249502,-677.16,0.00022191,2]
[358217035,1744852249512,-806.83,0.00022191,2]
[358217036,1744852249523,-500.0,0.00022191,2]
[358217037,1744852249534,-2574.2,0.00022191,2]
[358217038,1744852249544,-659.31,0.00022191,2]
[358217039,1744852249554,-873.42,0.00022191,2]
[358217040,1744852249564,-1774.94,0.00022191,2]
[358217041,1744852249574,-578.54356526,0.00022191,2]
[358217042,1744852249584,-500.0,0.00022191,2]
[358217043,1744852249594,-545.44,0.00022191,2]
[358217044,1744852249604,-1367.61,0.00022191,2]
[358217045,1744852249614,-2519.67,0.00022191,2]
[358217046,1744852249624,-500.0,0.00022191,2]
[358217047,1744852249634,-1112.11,0.00022191,2]
[358217048,1744852249644,-500.0,0.00022191,2]
[358217049,1744852249654,-684.25,0.00022191,2]
[358217050,1744852249664,-2245.97,0.00022191,2]
[358217051,1744852249674,-500.0,0.00022191,2]
[358217052,1744852249685,-500.0,0.00022191,2]
[358217053,1744852249695,-1435.77,0.00022191,2]
[358217054,1744852249706,-500.0,0.00022191,2]
[358217055,1744852249716,-500.0,0.00022191,2]
[358217056,1744852249727,-1045.07,0.00022191,2]
[358217057,1744852249737,-688.55,0.00022191,2]
[358217058,1744852249747,-1997.37,0.00022191,2]
[358217059,1744852249757,-500.0,0.00022191,2]
[358217060,1744852249767,-500.0,0.00022191,2]
[358217061,1744852249776,-1488.97,0.00022191,2]
[358217062,1744852249785,-6714.47,0.00022191,2]
[358217063,1744852249795,-500.0,0.00022191,2]
[358217064,1744852249805,-500.0,0.00022191,2]
[358217065,1744852249815,-2060.91,0.00022191,2]
[358217066,1744852249827,-500.0,0.00022191,2]
[358217067,1744852249837,-151.0,0.00022191,2]
[358217068,1744852249847,-519.65,0.00022191,2]
[358217069,1744852249857,-500.0,0.00022191,2]
[358217070,1744852249867,-151.0,0.00022191,2]
[358217071,1744852249876,-500.0,0.00022191,2]
[358217072,1744852249885,-500.0,0.00022191,2]
[358217073,1744852249896,-162.038488,0.00022191,2]
[358217074,1744852249907,-500.0,0.00022191,2]
[358217075,1744852249917,-511.65,0.00022191,2]
[358217076,1744852249927,-500.0,0.00022191,2]
[358217077,1744852249938,-516.36,0.00022191,2]
[358217078,1744852249948,-576.78,0.00022191,2]
[358217079,1744852249958,-939.41,0.00022191,2]
[358217080,1744852249968,-724.08,0.00022191,2]
[358217081,1744852249979,-500.0,0.00022191,2]
[358217082,1744852249988,-500.0,0.00022191,2]
[358217083,1744852249998,-747.32,0.00022191,2]
[358217084,1744852250008,-500.0,0.00022191,2]
[358217085,1744852250018,-500.0,0.00022191,2]
[358217086,1744852250028,-500.0,0.00022191,2]
[358217087,1744852250037,-500.0,0.00022191,2]
[358217088,1744852250047,-500.0,0.00022191,2]
[358217089,1744852250056,-500.0,0.00022191,2]
[358217090,1744852250065,-685.65,0.00022191,2]
[358217091,1744852250074,-755.44,0.00022191,2]
[358217092,1744852250085,-719.54,0.00022191,2]
[358217093,1744852250094,-500.0,0.00022191,2]
[358217094,1744852250104,-500.0,0.00022191,2]
[358217095,1744852250114,-674.93,0.00022191,2]
[358217096,1744852250123,-10133.31,0.00022191,2]
[358217097,1744852250133,-876.88,0.00022191,2]
[358217098,1744852250143,-510.66,0.00022191,2]
[358217099,1744852250153,-590.38,0.00022191,2]
[358217100,1744852250163,-833.36,0.00022191,2]
[358217101,1744852250173,-500.0,0.00022191,2]
[358217102,1744852250183,-352.83422079,0.00022191,2]
[358217103,1744852250474,-147.16577921,0.00022191,2]
[358217104,1744852250485,-661.55,0.00022191,2]
[358217105,1744852250495,-362.13376504,0.00022191,2]
[358217106,1744852250512,-285.98770573,0.00022191,2]
[358217664,1744854643490,-500.0,0.00019988,2]
[358217666,1744854643500,-500.0,0.00019988,2]
[358217668,1744854643509,-463.36314191,0.00019988,2]
[358217670,1744854643519,-3122.04465692,0.00019988,3]
[358217672,1744854643529,-3225.53130526,0.00019989,2]
[358218139,1744854648690,-150.08752874,0.000189,2]
[358222087,1744854692315,-307.29823,0.000189,2]
[358222144,1744854948541,-161.76488701,0.000189,2]
[358222145,1744855030888,598.966,0.0001801,2]
[358222175,1744855832295,-151.10302523,0.000189,2]
[358222177,1744855832305,-531.7735597,0.00020901,2]
[358222179,1744855832315,-459.40933107,0.00021499,2]
[358222181,1744855832324,-300.0,0.00021499,2]
[358222183,1744855832333,-178.0,0.00021499,2]
[358222185,1744855832342,-8017.90173402,0.000215,2]
[358222187,1744855832351,-1561.02232846,0.000215,3]
[358222189,1744855832360,-24781.79111015,0.000215,2]
[358222194,1744855832399,-302.66637075,0.000215,2]
[358222235,1744855838691,-15623.07176896,0.000215,2]
[358222238,1744855843469,-3027.65114496,0.000215,2]
[358223156,1744856854456,701.59,0.0001801,2]
[358223176,1744857032544,-2593.734641,0.00020891,2]
[358223178,1744857032556,-183.78742426,0.00021499,2]
[358223180,1744857032566,-177.23183137,0.00021499,2]
[358223182,1744857032576,-232.87548811,0.00021499,2]